Cogmind - Beta 9.4 *** ADVENTURER MODE // 2020.01.19 @ 18:51:27 Player: ditdatdave Result: Destroyed by D-53 Grenadier with Mini Grenade Launcher Performance ------------- Evolutions (0) 0 Regions Visited (4) 800 Robots Destroyed (24) 120 Value Destroyed (330) 330 Prototype IDs (22) 440 Alien Tech Used (0) 0 Bonus (356) 356 TOTAL SCORE: 2046 Bonus ------- Follower Combat Kills 56 Aligned with FarCom 300 Cogmind --------- Core Integrity 0/250 Matter 262/300 Energy 100/100 System Corruption 1% Temperature Cool (0) Movement Core (550) Ox10 Location -9/Mines Parts ------- > --- POWER (1) -------- (None) > --- PROPULSION (2) --- (None) > --- UTILITY (2) ------ Large Storage Unit Large Storage Unit > --- WEAPON (2) ------- (None) > --- INVENTORY (16) --- Light Ion Engine Aluminum Leg Large Storage Unit Advanced Signal Interpreter ECM Suite Hacking Suite Trap Reconfigurator Peak State ------------ > --- POWER ------------ Ion Engine > --- PROPULSION ------- Aluminum Leg Aluminum Leg > --- UTILITY ---------- Large Storage Unit Large Storage Unit > --- WEAPON ----------- Small Laser Rocket Launcher > --- INVENTORY -------- Ion Engine Light Ion Engine Aluminum Leg Aluminum Leg Aluminum Leg Large Storage Unit Advanced Signal Interpreter ECM Suite Hacking Suite Trap Reconfigurator Mining Laser [Rating: 10] Favorites ----------- Power Ion Engine Engine Ion Engine Propulsion Aluminum Leg Leg Aluminum Leg Utility Large Storage Unit Storage Large Storage Unit Weapon Small Laser Energy Gun Small Laser Ballistic Gun Light Assault Rifle Launcher Rocket Launcher Special Weapon Mining Laser Build | -11 -10 -10 -10 -9 ------- Run | Scr Mat Min Exi Min Slots Evolved . | . . . . . Power . | . . . . . Propulsion . | . . . . . Utility . | . . . . . Weapon . | . . . . . Parts Attached 25 | 6 10 2 2 5 Power 5 | 1 1 1 1 1 Engine 5 | 1 1 1 1 1 Core . | . . . . . Reactor . | . . . . . Propulsion 8 | 2 3 1 . 2 Treads . | . . . . . Leg 8 | 2 3 1 . 2 Wheel . | . . . . . Hover . | . . . . . Flight . | . . . . . Utility 5 | 1 3 . 1 . Device . | . . . . . Storage 5 | 1 3 . 1 . Processor . | . . . . . Hackware . | . . . . . Protection . | . . . . . Artifact . | . . . . . Weapon 7 | 2 3 . . 2 Energy Gun 2 | . 2 . . . Energy Cannon . | . . . . . Ballistic Gun 3 | 2 1 . . . Ballistic Cannon . | . . . . . Launcher 1 | . . . . 1 Special Weapon 1 | . . . . 1 Impact Weapon . | . . . . . Slashing Weapon . | . . . . . Piercing Weapon . | . . . . . Special Melee Weapon . | . . . . . Unidentified Prototypes . | . . . . . Parts Lost 14 | . 4 1 . 9 Power 3 | . 1 . . 2 Propulsion 4 | . . . . 4 Utility 1 | . 1 . . . Weapon 6 | . 2 1 . 3 Highest Loss Streak 9 | . 2 1 . 9 Average Slot Usage (%) 90 | . 97 93 84 81 Engine 13 | . 12 14 14 12 Leg 27 | . 28 28 28 26 Storage 27 | . 27 28 27 28 Energy Gun 12 | . 9 14 14 11 Ballistic Gun 6 | . 17 8 . . Naked Turns . | . . . . . Heaviest Build 38 | 9 26 27 38 38 Greatest Support 20 | 20 20 20 20 20 Greatest Overweight (x) 12 | . 2 1 1 12 Average Overweight (x) . | . . 1 1 1 Largest Inventory Capacity 16 | 6 12 12 16 16 Average Capacity 11 | 5 10 12 12 16 Most Carried 12 | 2 9 12 12 12 Average Carried 9 | 1 6 11 11 11 Final Capacity 16 | 6 12 12 16 16 Final Carried 12 | 2 9 12 12 7 Class Distribution -------------------- 59% | Mutant 40% | Scavenger-Mutant Dominant Class ---------------- Scavenger-Mutant | -10/Materials Scavenger-Mutant | -10/Mines Mutant | -10/Exiles Mutant | -9/Mines Resources | -11 -10 -10 -10 -9 ----------- Run | Scr Mat Min Exi Min Matter Collected 474 | 264 162 28 . 20 Remotely . | . . . . . Salvage Created 691 | 100 529 50 . 12 Parts 37 | 4 32 1 . . Haulers Intercepted . | . . . . . Recyclers Shooed 1 | . 1 . . . Parts Field Recycled . | . . . . . Retrieved Matter . | . . . . . Parts Self-Destructed . | . . . . . Prevented . | . . . . . Kills | -11 -10 -10 -10 -9 ------- Run | Scr Mat Min Exi Min Combat Hostiles Destroyed 17 | . 11 1 . 5 Guns 10 | . 9 1 . . AOE 7 | . 2 . . 5 Classes Destroyed 6 | 1 4 . . 1 Worker 2 | . 2 . . . Builder 2 | . 2 . . . Recycler 3 | 1 2 . . . Swarmer 6 | . 6 . . . Grunt 6 | . 5 1 . . Assembled 5 | . . . . 5 Best Kill Streak 9 | 1 9 1 . 5 Combat Bots Only 5 | . 4 1 . 5 Max Kills in Single Turn 4 | 1 2 1 . 4 Gunslinging 1 | . 1 . . . Exploded 4 | . 2 . . 4 Melee . | . . . . . Uniques/NPCs Destroyed . | . . . . . Combat | -11 -10 -10 -10 -9 -------- Run | Scr Mat Min Exi Min Damage Taken 1411 | 1 504 151 . 755 Core 257 | 1 76 7 . 173 Absorbed by Shields . | . . . . . Core Remaining (%) 99 | 99 . . . . Volleys Fired 59 | 2 40 8 . 9 Largest 2 | 2 2 2 . 2 Hottest 73 | 40 60 60 . 73 Shots Fired 107 | 4 77 14 . 12 Gun 104 | 4 77 14 . 9 Cannon . | . . . . . Launcher 3 | . . . . 3 Special . | . . . . . Kinetic 68 | 4 56 8 . . Thermal 19 | . 4 6 . 9 Explosive 3 | . . . . 3 Electromagnetic 17 | . 17 . . . Robot Hit Streak 16 | 3 16 9 . 5 Robot Miss Streak 3 | . 3 1 . 3 Penetration Max . | . . . . . Secondary Targets 1 | . 1 . . . Max Gunslinging Chain 1 | . 1 . . . Shots Hit Robots 77 | 3 56 11 . 7 Core Hits 53 | 3 29 7 . 14 Critical Hits . | . . . . . Critical Kills . | . . . . . Critical Parts Destroyed . | . . . . . Melee Attacks . | . . . . . Impact . | . . . . . Slashing . | . . . . . Piercing . | . . . . . Sneak Attacks . | . . . . . Combat Hostiles . | . . . . . Follow-up Attacks . | . . . . . Damage Inflicted 1203 | 27 762 104 . 310 Guns 746 | 24 564 104 . 54 Cannons . | . . . . . Explosions 427 | . 171 . . 256 Melee . | . . . . . Ramming 30 | 3 27 . . . Kinetic 406 | 24 334 48 . . Thermal 314 | . 204 56 . 54 Explosive 256 | . . . . 256 Electromagnetic 197 | . 197 . . . Impact . | . . . . . Slashing . | . . . . . Piercing . | . . . . . Highest Corruption 1 | . . 1 1 1 Average Corruption 1 | . . 1 1 1 Corruption Purged . | . . . . . Effects 3 | . . 1 1 1 Message Errors 3 | . . 1 1 1 Overload Shots . | . . . . . Overflow Damage 1 | . 1 . . . Projectiles . | . . . . . Explosions 1 | . 1 . . . Melee . | . . . . . Knockbacks 1 | . 1 . . . Impact 1 | . 1 . . . Kinetic . | . . . . . Secondary . | . . . . . Self-Inflicted Damage 86 | 1 46 . . 39 Shots 5 | . 2 . . 3 Rammed 4 | 1 3 . . . Targets Rammed 5 | 1 4 . . . Kicked 1 | . 1 . . . Crushed . | . . . . . Highest Temperature 79 | . 47 79 . 22 Average Temperature 21 | . 19 37 . 11 Received Heat Transfer 384 | . 267 57 . 60 Siege Activations . | . . . . . Robots Corrupted . | . . . . . Combat Hostiles . | . . . . . Parts Fried . | . . . . . Impact Corruptions . | . . . . . Robots Melted . | . . . . . Combat Hostiles . | . . . . . Parts Melted . | . . . . . Heat Transferred 575 | . 325 125 . 125 Parts Sabotaged . | . . . . . Parts Stolen . | . . . . . Parts Stripped . | . . . . . Power Chain Reactions 3 | . 3 . . . Missiles Intercepted . | . . . . . Alert | -11 -10 -10 -10 -9 ------- Run | Scr Mat Min Exi Min Peak Influence 272 | 5 272 185 . 15 Average Influence 79 | 2 116 85 . 2 Maximum Alert Level 1 | . 1 . . . Low Security (%) 92 | 100 80 100 . 100 Level 1 7 | . 19 . . . Level 2 . | . . . . . Level 3 . | . . . . . Level 4 . | . . . . . Level 5 . | . . . . . High Security . | . . . . . Max Security . | . . . . . Squads Dispatched . | . . . . . Investigation . | . . . . . Extermination . | . . . . . Reinforcement . | . . . . . Assault . | . . . . . Garrison . | . . . . . Intercept . | . . . . . Construction Impeded . | . . . . . Haulers Reinforced . | . . . . . Stealth | -11 -10 -10 -10 -9 --------- Run | Scr Mat Min Exi Min Distress Signals 3 | . 2 . . 1 Communications Jammed . | . . . . . Distress Signals . | . . . . . Times Spotted 40 | . 19 7 . 14 Peak Tracking Total 11 | . 4 3 . 11 Tactical Retreats 2 | . 1 . . 1 Traps | -11 -10 -10 -10 -9 ------- Run | Scr Mat Min Exi Min Traps Triggered 1 | . . 1 . . Indirectly . | . . . . . Trap Hack Attempts . | . . . . . Triggered . | . . . . . Disarmed . | . . . . . Reprogrammed . | . . . . . Reused . | . . . . . Traps Extracted . | . . . . . Installed . | . . . . . Triggered . | . . . . . Machines | -11 -10 -10 -10 -9 ---------- Run | Scr Mat Min Exi Min Machines Disabled 1 | . 1 . . . Max in Single Turn 1 | . 1 . . . Machines Sabotaged . | . . . . . Garrisons Compromised . | . . . . . Overloaded Fab Kills . | . . . . . Fab Network Shutdowns . | . . . . . Hacking | -11 -10 -10 -10 -9 --------- Run | Scr Mat Min Exi Min Machines Accessed 9 | . 4 1 4 . Terminals 3 | . 3 . . . Fabricators . | . . . . . Repair Stations . | . . . . . Recycling Units 1 | . 1 . . . Scanalyzers . | . . . . . Garrison Access . | . . . . . Total Hacks 28 | . 12 1 15 . Successful 23 | . 7 1 15 . Failed 5 | . 5 . . . Catastrophic 2 | . 2 . . . Database Lockouts . | . . . . . Manual 6 | . 5 . 1 . Terminals 10 | . 10 . . . Fabricators . | . . . . . Repair Stations . | . . . . . Recycling Units 2 | . 2 . . . Scanalyzers . | . . . . . Garrison Access . | . . . . . Terminal Hacks 22 | . 6 1 15 . Record 14 | . . . 14 . Open Door 1 | . . 1 . . Branch Access Points 1 | . 1 . . . Alert Level 1 | . 1 . . . Locate Traps 1 | . 1 . . . Patrol Status 1 | . 1 . . . Zone Layout 2 | . 2 . . . EX-Prototype ID Bank 1 | . . . 1 . Fabricator Hacks . | . . . . . Repair Station Hacks . | . . . . . Recycling Unit Hacks 1 | . 1 . . . Retrieve Components 1 | . 1 . . . Scanalyzer . | . . . . . Garrison Access Hacks . | . . . . . Unauthorized Hacks . | . . . . . Terminals . | . . . . . Fabricators . | . . . . . Repair Stations . | . . . . . Recycling Units . | . . . . . Scanalyzers . | . . . . . Garrison Access . | . . . . . Data Cores Recovered . | . . . . . Used . | . . . . . Hacking Detections 4 | . 4 . . . Full Trace Events . | . . . . . Feedback Events . | . . . . . Feedback Blocked . | . . . . . Robot Schematics Acquired . | . . . . . Robots Built . | . . . . . Matter . | . . . . . Time . | . . . . . Total Robot Build Rating . | . . . . . Part Schematics Acquired . | . . . . . Parts Built . | . . . . . Matter . | . . . . . Time . | . . . . . Total Part Build Rating . | . . . . . Parts Repaired . | . . . . . Time . | . . . . . Parts Recycled . | . . . . . Recycled Matter . | . . . . . Retrieved Matter . | . . . . . Retrieved Components 1 | . 1 . . . Parts Scanalyzed . | . . . . . Part Schematics Acquired . | . . . . . Parts Damaged . | . . . . . Bothacking | -11 -10 -10 -10 -9 ------------ Run | Scr Mat Min Exi Min Used RIF Installer . | . . . . . Robots Hacked . | . . . . . Non-combat . | . . . . . Combat . | . . . . . Robot Hacks Applied . | . . . . . Relay Couplers Released . | . . . . . Robots Rewired . | . . . . . Allies Hacked . | . . . . . Hacks Repelled . | . . . . . Allies | -11 -10 -10 -10 -9 -------- Run | Scr Mat Min Exi Min Total Allies 1 | . . 1 . . Largest Group 1 | . . 1 1 . Highest-Rated Group 31 | . . 31 31 . Highest-Rated Ally 31 | . . 31 31 . Total Orders . | . . . . . Ally Attacks 12 | . . 12 . . Total Damage 209 | . . 209 . . Kills 4 | . . 4 . . Allies Corrupted . | . . . . . Allies Melted . | . . . . . Intel | -11 -10 -10 -10 -9 ------- Run | Scr Mat Min Exi Min Robot Analysis Total . | . . . . . Derelict Logs Recovered 2 | . . 2 . . Drone Launches . | . . . . . Drone Recoveries . | . . . . . Exploration | -11 -10 -10 -10 -9 ------------- Run | Scr Mat Min Exi Min Turns Passed 2720 | 99 683 656 1013 269 Spaces Moved 1689 | 74 369 419 671 156 Core 11 | 9 . . . 2 Treads . | . . . . . Legs 1678 | 65 369 419 671 154 Wheels . | . . . . . Hover . | . . . . . Flight . | . . . . . Fastest Speed 50 | 50 120 150 150 150 Average Speed 148 | 111 147 150 150 156 Slowest Speed 650 | 120 180 150 150 650 Overloaded Moves . | . . . . . Propulsion Burnouts . | . . . . . Robots Hopped . | . . . . . Cave-ins Triggered . | . . . . . Exploration Rate (%) 48 | 4 44 75 91 27 Regions Visited 4 Branch Regions 3 Pre-discovered Areas 3 | . . 1 1 1 Known Exits Taken 2 | . 1 1 . . Unknown Exits Taken 2 | 1 . . 1 . Scrap Searched 1 | . . 1 . . Spaces Dug . | . . . . . Terrain Destroyed 54 | . 22 . . 32 Melee . | . . . . . Projectile . | . . . . . AOE 54 | . 22 . . 32 Actions | -11 -10 -10 -10 -9 --------- Run | Scr Mat Min Exi Min Total 1806 | 84 438 435 679 170 Wait 5 | . 5 . . . Move 1686 | 74 368 418 670 156 Hop . | . . . . . Pick Up 18 | 2 8 4 4 . Fast Attach 9 | 6 2 . 1 . Attach 9 | . 3 . 1 5 Detach . | . . . . . Swap 7 | . 5 2 . . Drop 9 | . 3 3 3 . Fire 59 | 2 40 8 . 9 Melee . | . . . . . Ram . | . . . . . Kick 4 | . 4 . . . Crush . | . . . . . Escape Stasis . | . . . . . Rewire . | . . . . . Trap . | . . . . . Miscellaneous . | . . . . . Route ------- -11/Scrapyard -10/Materials (discovered 2 exits: *Min x2) -10/Mines (discovered 3 exits: *Mat x2 / *Exi) -10/Exiles (discovered 2 exits: [*Min x2]) -9/Mines History --------- Turn | Location | Event 9 | -11/Scrapyard | Discovered new exit (range 15) 100 | -11/Scrapyard | Entered Materials 333 | -10/Materials | Build established: Mutant 557 | -10/Materials | Discovered new exit (range 15) 686 | -10/Materials | Build established: Scavenger-Mutant 749 | -10/Materials | Discovered new exit (range 13) 753 | -10/Materials | Identified exit to Mines 783 | -10/Materials | Entered Mines 801 | -10/Mines | Escorted by a lone wolf Derelict 821 | -10/Mines | Learned location of Storage (-8) 847 | -10/Mines | Identified exit to Materials 1160 | -10/Mines | Met a Derelict who couldn't figure out how to use a Trap Extractor 1214 | -10/Mines | Discovered exit to Materials (range 15) 1342 | -10/Mines | Received a Rocket Launcher from a helpful Derelict 1370 | -10/Mines | Identified exit to Exiles 1429 | -10/Mines | Deemed a non-threat by the Exiles lab entrance 1439 | -10/Mines | Entered Exiles 1439 | -10/Exiles | Accompanied by 1 ally 1503 | -10/Exiles | Met 8R-AWN 1518 | -10/Exiles | Discovered new exit (range 15) 1629 | -10/Exiles | Met EX-HEX 1730 | -10/Exiles | Met EX-BIN 1770 | -10/Exiles | Aligned with FarCom system 1772 | -10/Exiles | Build established: Mutant 1772 | -10/Exiles | Given EX-Vault access code 1904 | -10/Exiles | Opened EX-Vault 1941 | -10/Exiles | Found Trap Reconfigurator 1997 | -10/Exiles | Warned to stay clear of 0b10 Research branches 2048 | -10/Exiles | Met EX-DEC 2061 | -10/Exiles | Learned location of Zion (-7) 2158 | -10/Exiles | Visited The Gauntlet 2431 | -10/Exiles | Discovered new exit (range 12) 2452 | -10/Exiles | Left Exiles lab with Trap Reconfigurator 2452 | -10/Exiles | Entered Mines 2626 | -9/Mines | Assembled infested the area 2675 | -9/Mines | Core integrity fell below 50% 2711 | -9/Mines | Core integrity fell below 20% 2721 | -9/Mines | Destroyed by D-53 Grenadier with Mini Grenade Launcher Last Messages --------------- Aluminum Leg destroyed. R-06 Scavenger destroyed. Rocket Launcher destroyed. as-19987 destroyed. as-40609 destroyed. D-53 Grenadier destroyed. Aluminum Leg destroyed. D-53 Grenadier knocked back. The unstable cave ceiling collapses. as-11353 destroyed. The unstable cave ceiling collapses. Mining Laser destroyed. R-06 Scavenger destroyed. The unstable cave ceiling collapses. K-01 Serf collects debris. Aluminum Leg destroyed. Ion Engine destroyed. K-01 Serf destroyed. R-06 Scavenger collects Lgt. Ion Engine. K-01 Serf collects debris. Map ----- +----------------------------------------------------+ | ????????????????????????????????????? | | ????????????????????????????????????? | | ????????????????????????????????????? | | ????????????????????????????????????? | | ????????????????????????????????????? | | ????????????????????????????????????? | | ????????????????????????????????????? | | ????????????????????????????????????? | | ????????????????????????????????????? | | ????????????????????????????????????? | | ????????????????????????????????????? | | ???????? ???????????????????????????? | | ???????? ??????????????????????????# | | ???????? "????????????????????????? | | ???????? "????????###????????????? | | ????????? ????????# ##???????????? | | ????????? ???????## #???????????? | | ?????????# k??????# ##???????##### | | ?????????#bg??????# ##?????### ## | | ?????????# ??????## ##??### # | | ?????????# r######## #?## | | ?????????# t ### % | | ?????????# ## # ## | | ????????## # ### # | | ???????## ### # # | | ???????# @ ## | | ??????## d # | | ??????# # # | | ??????# % ## | | ??????## # # | | ???????## ## #?## | | ????????## ### # #??? | | ?????????# #### ## #??? | | ?????????# ##### #### #??? | | ?????????## ## #??# #??? | | ??????????## #??## ##?? | | ???????????## #???# #?? | | ????????????## #??# ### | | ?????????????### #??# ## | | ???????????????## ##??## | | ????????????????# ######????# | | ????????????????## ##?????????## | | ?????????????????####???????????## | | ?????????????????????????????????#### | | ????????????????????????????????????? | | | | | | | | | | | +----------------------------------------------------+ Best States ------------- Heat Dissipation 25 Energy Generation 10 Energy Capacity 250 Matter Stores 331 Matter Capacity 400 Sight Range 16 Terrain Scan Density 10 Resistance: KI 20 Resistance: TH 20 Resistance: EX 20 Resistance: EM 20 Resistance: I 20 Resistance: S 20 Resistance: P 20 Evasion (%) 40 Offensive Hacking 10 Item Schematics ----------------- None Robot Schematics ------------------ None Fabricated ------------ Nothing Alien Tech Used ----------------- None Achievements -------------- None Challenges ------------ None Game ------ Seed SpectralAutogunTreads Manual? 0 Play Time 00:30:37 Cumulative 290.2 hours Start 2020.01.15 @ 21:17:42 End 2020.01.19 @ 18:51:27 Sessions 3 Manual Loads 0 Difficulty Adventurer Special Mode None Game No. 80 Rogue 50 Adventurer 30 Explorer 0 Win Type - Total 0 Types 0/0/0/0/0/0/0 Lore% 15 Gallery% 32 Achievement% 22 Wizard Run 0 Options --------- ASCII 1 Keyboard 1 Movement Arrows Keybinds 0 Fullscreen 2 Font 32/Terminus Map View 63x52 Tactical HUD 0 Map Filters NONE Filters NONE Steam 1 RUN: a2c49ad2-8269-4b84-bbcf-c79676f25091